fUSD/lending_fUSD_20240426
["ID","MTS","AMOUNT","RATE_DAILY","PERIOD"]
[323699595,1714167071480,-200.0,0.00015,2]
[323699596,1714167071490,-155.0,0.00015,2]
[323699597,1714167071501,-750.0,0.00015,3]
[323699598,1714167071512,-1338.0,0.00015,2]
[323699599,1714167071522,-999.32,0.00015,2]
[323699600,1714167071531,-550.922677,0.00015,2]
[323699601,1714167071541,-368.32,0.00015047,2]
[323699602,1714167071550,-515.0,0.00015068,2]
[323699603,1714167071559,-846.17,0.00015068,2]
[323699604,1714167071569,-1347.92,0.00015068,2]
[323699605,1714167071579,-562.11,0.00015068,2]
[323699606,1714167071588,-479.36572237,0.00015068,2]
[323699607,1714167071598,-500.0,0.00015068,2]
[323699608,1714167071607,-500.0,0.00015068,2]
[323699609,1714167071617,-1773.63,0.00015068,2]
[323699610,1714167071627,-1226.85,0.00015068,2]
[323699611,1714167071638,-2547.19,0.00015068,2]
[323699612,1714167071649,-500.0,0.00015068,2]
[323699613,1714167071660,-2525.7,0.00015068,2]
[323699614,1714167071671,-1601.33,0.00015068,2]
[323699615,1714167071682,-1046.8,0.00015068,2]
[323699616,1714167071694,-2439.87,0.00015068,2]
[323699617,1714167071704,-507.38,0.00015068,2]
[323699618,1714167071715,-910.02,0.00015068,2]
[323699619,1714167071724,-1026.19,0.00015068,2]
[323699620,1714167071735,-500.0,0.00015068,2]
[323699621,1714167071745,-936.26,0.00015068,2]
[323699622,1714167071756,-3948.29,0.00015068,2]
[323699623,1714167071766,-500.0,0.00015068,2]
[323699624,1714167071776,-3479.09,0.00015068,2]
[323699625,1714167071786,-506.65,0.00015068,2]
[323699626,1714167071795,-854.81,0.00015068,2]
[323699627,1714167071805,-844.75,0.00015068,2]
[323699628,1714167071816,-728.65,0.00015068,2]
[323699629,1714167071825,-500.0,0.00015068,2]
[323699630,1714167071834,-2110.77,0.00015068,2]
[323699631,1714167071844,-940.7,0.00015068,2]
[323699632,1714167071854,-3618.21,0.00015068,2]
[323699633,1714167071864,-500.0,0.00015068,2]
[323699634,1714167071874,-500.0,0.00015068,2]
[323699635,1714167071884,-500.0,0.00015068,2]
[323699636,1714167071894,-500.0,0.00015068,2]
[323699637,1714167071903,-1085.71,0.00015068,2]
[323699638,1714167071913,-500.0,0.00015068,2]
[323699639,1714167071924,-2709.84,0.00015068,2]
[323699640,1714167071934,-500.0,0.00015068,2]
[323699641,1714167071945,-3874.03,0.00015068,2]
[323699642,1714167071956,-500.0,0.00015068,2]
[323699643,1714167071965,-3510.07,0.00015068,2]
[323699644,1714167071975,-780.74,0.00015068,2]
[323699645,1714167071985,-500.0,0.00015068,2]
[323699646,1714167071995,-342.3,0.00015068,2]
[323699647,1714167072005,-579.45,0.00015068,2]
[323699648,1714167072014,-300.0,0.00015068,2]
[323699649,1714167072025,-942.31,0.00015192,2]
[323699650,1714167072037,-651.96453579,0.00015242,2]
[323699651,1714167072047,-1149.86791386,0.00015304,2]
[323699652,1714167072058,-662.82,0.00015341,2]
[323699653,1714167072069,-846.17,0.00015342,2]
[323699654,1714167072078,-1347.92,0.00015342,2]
[323699655,1714167072089,-562.11,0.00015342,2]
[323699656,1714167072099,-348.29532885,0.00015342,2]
[323699657,1714167072108,-500.0,0.00015342,2]
[323699658,1714167072118,-1773.63,0.00015342,2]
[323699659,1714167072127,-1226.85,0.00015342,2]
[323699660,1714167072138,-2547.19,0.00015342,2]
[323699661,1714167072147,-500.0,0.00015342,2]
[323699662,1714167072156,-2525.7,0.00015342,2]
[323699663,1714167072167,-1601.33,0.00015342,2]
[323699664,1714167072176,-1046.8,0.00015342,2]
[323699665,1714167072186,-2439.87,0.00015342,2]
[323699666,1714167072197,-507.38,0.00015342,2]
[323699667,1714167072207,-910.02,0.00015342,2]
[323699668,1714167072216,-1026.19,0.00015342,2]
[323699669,1714167072226,-500.0,0.00015342,2]
[323699670,1714167072235,-936.26,0.00015342,2]
[323699671,1714167072245,-3948.29,0.00015342,2]
[323699672,1714167072255,-500.0,0.00015342,2]
[323699673,1714167072265,-3479.09,0.00015342,2]
[323699674,1714167072275,-506.65,0.00015342,2]
[323699675,1714167072285,-854.81,0.00015342,2]
[323699676,1714167072294,-844.75,0.00015342,2]
[323699677,1714167072303,-728.65,0.00015342,2]
[323699678,1714167072313,-430.38,0.00015342,2]
[323699679,1714167072323,-2110.77,0.00015342,2]
[323699680,1714167072332,-940.7,0.00015342,2]
[323699681,1714167072341,-3618.21,0.00015342,2]
[323699682,1714167072352,-500.0,0.00015342,2]
[323699683,1714167072362,-500.0,0.00015342,2]
[323699684,1714167072371,-391.04,0.00015342,2]
[323699685,1714167072380,-500.0,0.00015342,2]
[323699686,1714167072390,-1085.71,0.00015342,2]
[323699687,1714167072401,-500.0,0.00015342,2]
[323699688,1714167072411,-2709.84,0.00015342,2]
[323699689,1714167072422,-500.0,0.00015342,2]
[323699690,1714167072432,-3874.03,0.00015342,2]
[323699691,1714167072443,-500.0,0.00015342,2]
[323699692,1714167072452,-3510.07,0.00015342,2]
[323699693,1714167072462,-780.74,0.00015342,2]
[323699694,1714167072472,-500.0,0.00015342,2]
[323699695,1714167072482,-579.45,0.00015342,2]
[323699696,1714167072491,-155.0,0.000155,2]
[323699697,1714167072501,-150.0,0.000155,2]
[323699698,1714167072510,-3474.18958782,0.00015516,2]
[323699699,1714167072520,-846.17,0.00015616,2]
[323699700,1714167072529,-1347.92,0.00015616,2]
[323699701,1714167072539,-562.11,0.00015616,2]
[323699702,1714167072548,-290.64191211,0.00015616,2]
[323699703,1714167072557,-1773.63,0.00015616,2]
[323699704,1714167072567,-1226.85,0.00015616,2]
[323699705,1714167072577,-2547.19,0.00015616,2]
[323699706,1714167072586,-500.0,0.00015616,2]
[323699707,1714167072595,-2525.7,0.00015616,2]
[323699708,1714167072604,-1601.33,0.00015616,2]
[323699709,1714167072614,-1046.8,0.00015616,2]
[323699710,1714167072624,-2439.87,0.00015616,2]
[323699711,1714167072634,-507.38,0.00015616,2]
[323699712,1714167072644,-910.02,0.00015616,2]
[323699713,1714167072653,-1026.19,0.00015616,2]
[323699714,1714167072665,-212.0,0.00015616,2]
[323699715,1714167072677,-936.26,0.00015616,2]
[323699716,1714167072687,-3948.29,0.00015616,2]
[323699717,1714167072696,-500.0,0.00015616,2]
[323699718,1714167072707,-3479.09,0.00015616,2]
[323699719,1714167072716,-506.65,0.00015616,2]
[323699720,1714167072725,-854.81,0.00015616,2]
[323699721,1714167072735,-844.75,0.00015616,2]
[323699722,1714167072745,-728.65,0.00015616,2]
[323699723,1714167072755,-2110.77,0.00015616,2]
[323699724,1714167072765,-940.7,0.00015616,2]
[323699725,1714167072775,-3618.21,0.00015616,2]
[323699726,1714167072785,-500.0,0.00015616,2]
[323699727,1714167072794,-500.0,0.00015616,2]
[323699728,1714167072804,-500.0,0.00015616,2]
[323699729,1714167072812,-1085.71,0.00015616,2]
[323699730,1714167072822,-500.0,0.00015616,2]
[323699731,1714167072831,-2709.84,0.00015616,2]
[323699732,1714167072840,-500.0,0.00015616,2]
[323699733,1714167072850,-3874.03,0.00015616,2]
[323699734,1714167072859,-500.0,0.00015616,2]
[323699735,1714167072869,-3510.07,0.00015616,2]
[323699736,1714167072878,-780.74,0.00015616,2]
[323699737,1714167072887,-209.66,0.00015616,2]
[323699738,1714167072897,-579.45,0.00015616,2]
[323699739,1714167072906,-515.0,0.00015753,2]
[323699740,1714167072915,-167.0,0.00015831,2]
[323699741,1714167072924,-846.17,0.0001589,2]
[323699742,1714167072933,-1347.92,0.0001589,2]
[323699743,1714167072942,-562.11,0.0001589,2]
[323699744,1714167072951,-1773.63,0.0001589,2]
[323699745,1714167072960,-1226.85,0.0001589,2]
[323699746,1714167072970,-2547.19,0.0001589,2]
[323699747,1714167072979,-500.0,0.0001589,2]
[323699748,1714167072988,-2525.7,0.0001589,2]
[323699749,1714167072998,-1601.33,0.0001589,2]
[323699750,1714167073007,-1046.8,0.0001589,2]
[323699751,1714167073017,-2439.87,0.0001589,2]
[323699752,1714167073026,-507.38,0.0001589,2]
[323699753,1714167073036,-910.02,0.0001589,2]
[323699754,1714167073045,-1026.19,0.0001589,2]
[323699755,1714167073055,-936.26,0.0001589,2]
[323699756,1714167073064,-3948.29,0.0001589,2]
[323699757,1714167073076,-500.0,0.0001589,2]
[323699758,1714167073085,-3479.09,0.0001589,2]
[323699759,1714167073094,-506.65,0.0001589,2]
[323699760,1714167073103,-854.81,0.0001589,2]
[323699761,1714167073112,-844.75,0.0001589,2]
[323699762,1714167073121,-728.65,0.0001589,2]
[323699763,1714167073131,-461.50329702,0.0001589,2]
[323699764,1714167073155,-438.29,0.00011232,2]
[323699765,1714167073323,-61.71,0.00011232,2]
[323699766,1714167073332,-201.69563939,0.00011506,2]
[323699767,1714167073365,-500.0,0.00010958,2]
[323699768,1714167073374,-142.35214,0.00011506,2]
[323699769,1714167073398,-155.95222061,0.00011506,2]
[323699770,1714167073407,-503.45376376,0.00011506,2]
[323699771,1714167073417,-500.0,0.0001178,2]
[323699772,1714167073428,-500.0,0.00012054,2]
[323699773,1714167073440,-331.1,0.00012328,2]
[323699774,1714167073451,-782.17027621,0.0001589,2]
[323699775,1714167073792,-500.0,0.00010958,2]
[323699776,1714167073801,-500.0,0.00010958,2]
[323699777,1714167073812,-500.0,0.00010958,2]
[323699778,1714167073822,-500.0,0.00010958,2]
[323699779,1714167073831,-500.0,0.00010958,2]
[323699780,1714167073841,-500.0,0.00010958,2]
[323699781,1714167073850,-500.0,0.00010958,2]
[323699782,1714167073860,-339.55224599,0.00011232,2]
[323699783,1714167073869,-500.0,0.00011232,2]
[323699784,1714167073878,-500.0,0.00011232,2]
[323699785,1714167073887,-500.0,0.00011232,2]
[323699786,1714167073898,-344.22,0.00011232,2]
[323699787,1714167073908,-867.09642677,0.0001589,2]
[323699788,1714167073917,-940.7,0.0001589,2]
[323699789,1714167073927,-3618.21,0.0001589,2]
[323699790,1714167073936,-500.0,0.0001589,2]
[323699791,1714167073948,-500.0,0.0001589,2]
[323699792,1714167073958,-500.0,0.0001589,2]
[323699793,1714167073968,-1085.71,0.0001589,2]
[323699794,1714167073978,-500.0,0.0001589,2]
[323699795,1714167073987,-2709.84,0.0001589,2]
[323699796,1714167073997,-500.0,0.0001589,2]
[323699797,1714167074008,-3874.03,0.0001589,2]
[323699798,1714167074017,-500.0,0.0001589,2]
[323699799,1714167074027,-3510.07,0.0001589,2]
[323699800,1714167074037,-780.74,0.0001589,2]
[323699801,1714167074046,-579.45,0.0001589,2]
[323699802,1714167074055,-150.0,0.00016,2]
[323699803,1714167074065,-193.81117182,0.00016002,2]
[323699804,1714167074074,-193.81117182,0.00016002,2]
[323699805,1714167074083,-193.81117182,0.00016002,2]
[323699806,1714167074093,-562.97266904,0.00016014,2]
[323699807,1714167074102,-784.99535612,0.00016064,2]
[323699808,1714167074111,-400.0,0.00016072,2]
[323699809,1714167074121,-536.60501813,0.00016157,2]
[323699810,1714167074130,-2000.0,0.00016163,2]
[323699811,1714167074139,-662.82,0.00016163,2]
[323699812,1714167074149,-3581.02291057,0.00016164,2]
[323699813,1714167074158,-138161.75410263,0.00016164,2]
[323699814,1714167074167,-385.7364212,0.00016164,2]
[323699815,1714167074178,-846.17,0.00016164,2]
[323699816,1714167074187,-1347.92,0.00016164,2]
[323699817,1714167074197,-562.11,0.00016164,2]
[323699818,1714167074206,-1773.63,0.00016164,2]
[323699819,1714167074216,-1226.85,0.00016164,2]
[323699820,1714167074226,-2547.19,0.00016164,2]
[323699821,1714167074235,-500.0,0.00016164,2]
[323699822,1714167074244,-2525.7,0.00016164,2]
[323699823,1714167074253,-1601.33,0.00016164,2]
[323699824,1714167074264,-1046.8,0.00016164,2]
[323699825,1714167074273,-2439.87,0.00016164,2]
[323699826,1714167074282,-507.38,0.00016164,2]
[323699827,1714167074292,-910.02,0.00016164,2]
[323699828,1714167074302,-1026.19,0.00016164,2]
[323699829,1714167074311,-936.26,0.00016164,2]
[323699830,1714167074321,-3948.29,0.00016164,2]
[323699831,1714167074356,-500.0,0.00016164,2]
[323699832,1714167074365,-3479.09,0.00016164,2]
[323699833,1714167074375,-506.65,0.00016164,2]
[323699834,1714167074385,-854.81,0.00016164,2]
[323699835,1714167074394,-844.75,0.00016164,2]
[323699836,1714167074404,-728.65,0.00016164,2]
[323699837,1714167074414,-2110.77,0.00016164,2]
[323699838,1714167074424,-940.7,0.00016164,2]
[323699839,1714167074434,-3618.21,0.00016164,2]
[323699840,1714167074443,-500.0,0.00016164,2]
[323699841,1714167074453,-500.0,0.00016164,2]
[323699842,1714167074464,-500.0,0.00016164,2]
[323699843,1714167074474,-1085.71,0.00016164,2]
[323699844,1714167074483,-500.0,0.00016164,2]
[323699845,1714167074494,-2709.84,0.00016164,2]
[323699846,1714167074506,-500.0,0.00016164,2]
[323699847,1714167074515,-3874.03,0.00016164,2]
[323699848,1714167074525,-500.0,0.00016164,2]
[323699849,1714167074534,-3510.07,0.00016164,2]
[323699850,1714167074543,-780.74,0.00016164,2]
[323699851,1714167074552,-579.45,0.00016164,2]
[323699852,1714167074560,-224.60048978,0.00016294,2]
[323699853,1714167074570,-536.60501813,0.00016304,2]
[323699854,1714167074579,-167.0,0.00016354,2]
[323699855,1714167074589,-153.85256324,0.0001641,2]
[323699856,1714167074598,-2000.0,0.00016437,2]
[323699857,1714167074609,-515.0,0.00016438,2]
[323699858,1714167074620,-846.17,0.00016438,2]
[323699859,1714167074630,-1347.92,0.00016438,2]
[323699860,1714167074639,-562.11,0.00016438,2]
[323699861,1714167074650,-1773.63,0.00016438,2]
[323699862,1714167074660,-1226.85,0.00016438,2]
[323699863,1714167074670,-2547.19,0.00016438,2]
[323699864,1714167074684,-500.0,0.00016438,2]
[323699865,1714167074693,-2525.7,0.00016438,2]
[323699866,1714167074702,-1601.33,0.00016438,2]
[323699867,1714167074711,-1046.8,0.00016438,2]
[323699868,1714167074722,-2439.87,0.00016438,2]
[323699869,1714167074731,-507.38,0.00016438,2]
[323699870,1714167074740,-910.02,0.00016438,2]
[323699871,1714167074750,-1026.19,0.00016438,2]
[323699872,1714167074760,-936.26,0.00016438,2]
[323699873,1714167074770,-3948.29,0.00016438,2]
[323699874,1714167074781,-500.0,0.00016438,2]
[323699875,1714167074793,-3479.09,0.00016438,2]
[323699876,1714167074804,-506.65,0.00016438,2]
[323699877,1714167074813,-854.81,0.00016438,2]
[323699878,1714167074825,-844.75,0.00016438,2]
[323699879,1714167074836,-728.65,0.00016438,2]
[323699880,1714167074845,-2110.77,0.00016438,2]
[323699881,1714167074854,-940.7,0.00016438,2]
[323699882,1714167074863,-3618.21,0.00016438,2]
[323699883,1714167074873,-500.0,0.00016438,2]
[323699884,1714167074882,-500.0,0.00016438,2]
[323699885,1714167074892,-500.0,0.00016438,2]
[323699886,1714167074901,-1085.71,0.00016438,2]
[323699887,1714167074911,-500.0,0.00016438,2]
[323699888,1714167074920,-2709.84,0.00016438,2]
[323699889,1714167074930,-500.0,0.00016438,2]
[323699890,1714167074939,-3874.03,0.00016438,2]
[323699891,1714167074949,-461.09,0.00016438,2]
[323699892,1714167074958,-3510.07,0.00016438,2]
[323699893,1714167074967,-780.74,0.00016438,2]
[323699894,1714167074977,-579.45,0.00016438,2]
[323699895,1714167074986,-300.0,0.00016438,2]
[323699896,1714167074995,-154.76534602,0.00016439,2]
[323699897,1714167075005,-1224.09833319,0.000165,2]
[323699898,1714167075014,-150.0,0.000165,2]
[323699899,1714167075023,-153.85256324,0.00016501,2]
[323699900,1714167075033,-155.04600891,0.00016605,2]
[323699901,1714167075042,-154.31732652,0.00016641,2]
[323699902,1714167075051,-159.44275274,0.0001671,2]
[323699903,1714167075060,-2000.0,0.00016711,2]
[323699904,1714167075070,-846.17,0.00016712,2]
[323699905,1714167075080,-1347.92,0.00016712,2]
[323699906,1714167075090,-562.11,0.00016712,2]
[323699907,1714167075099,-1773.63,0.00016712,2]
[323699908,1714167075108,-1226.85,0.00016712,2]
[323699909,1714167075119,-2547.19,0.00016712,2]
[323699910,1714167075128,-500.0,0.00016712,2]
[323699911,1714167075138,-2525.7,0.00016712,2]
[323699912,1714167075147,-1601.33,0.00016712,2]
[323699913,1714167075156,-1046.8,0.00016712,2]
[323699914,1714167075165,-2439.87,0.00016712,2]
[323699915,1714167075175,-507.38,0.00016712,2]
[323699916,1714167075184,-910.02,0.00016712,2]
[323699917,1714167075194,-1026.19,0.00016712,2]
[323699918,1714167075203,-936.26,0.00016712,2]
[323699919,1714167075213,-3948.29,0.00016712,2]
[323699920,1714167075223,-518.96,0.00016712,2]
[323699921,1714167075233,-3479.09,0.00016712,2]
[323699922,1714167075242,-506.65,0.00016712,2]
[323699923,1714167075252,-854.81,0.00016712,2]
[323699924,1714167075261,-844.75,0.00016712,2]
[323699925,1714167075271,-728.65,0.00016712,2]
[323699926,1714167075281,-2110.77,0.00016712,2]
[323699927,1714167075290,-940.7,0.00016712,2]
[323699928,1714167075300,-3618.21,0.00016712,2]
[323699929,1714167075310,-500.0,0.00016712,2]
[323699930,1714167075320,-500.0,0.00016712,2]
[323699931,1714167075329,-638.0,0.00016712,2]
[323699932,1714167075339,-1085.71,0.00016712,2]
[323699933,1714167075348,-500.0,0.00016712,2]
[323699934,1714167075357,-2709.84,0.00016712,2]
[323699935,1714167075367,-579.83,0.00016712,2]
[323699936,1714167075376,-3874.03,0.00016712,2]
[323699937,1714167075386,-3510.07,0.00016712,2]
[323699938,1714167075395,-780.74,0.00016712,2]
[323699939,1714167075405,-579.45,0.00016712,2]
[323699940,1714167075415,-160.8,0.00016712,2]
[323699941,1714167075425,-562.97266904,0.00016752,2]
[323699942,1714167075434,-224.60048978,0.00016778,2]
[323699943,1714167075443,-182.55950115,0.0001678,2]
[323699944,1714167075453,-999.32,0.0001679,2]
[323699945,1714167075462,-158.48901117,0.00016816,2]
[323699946,1714167075471,-163.06543193,0.00016835,2]
[323699947,1714167075480,-167.0,0.00016876,2]
[323699948,1714167075489,-224.60048978,0.00016878,2]
[323699949,1714167075498,-153.85256324,0.00016884,2]
[323699950,1714167075507,-562.97266904,0.00016906,2]
[323699951,1714167075516,-166.66666666,0.0001693,2]
[323699952,1714167075526,-562.97266904,0.00016931,2]
[323699953,1714167075535,-224.60048978,0.00016938,2]
[323699954,1714167075544,-846.17,0.00016986,2]
[323699955,1714167075553,-1347.92,0.00016986,2]
[323699956,1714167075562,-562.11,0.00016986,2]
[323699957,1714167075572,-1773.63,0.00016986,2]
[323699958,1714167075581,-1226.85,0.00016986,2]
[323699959,1714167075590,-2547.19,0.00016986,2]
[323699960,1714167075599,-598.52,0.00016986,2]
[323699961,1714167075609,-2525.7,0.00016986,2]
[323699962,1714167075618,-1601.33,0.00016986,2]
[323699963,1714167075627,-1046.8,0.00016986,2]
[323699964,1714167075637,-2439.87,0.00016986,2]
[323699965,1714167075646,-507.38,0.00016986,2]
[323699966,1714167075656,-910.02,0.00016986,2]
[323699967,1714167075665,-1026.19,0.00016986,2]
[323699968,1714167075679,-936.26,0.00016986,2]
[323699969,1714167075688,-3948.29,0.00016986,2]
[323699970,1714167075698,-3479.09,0.00016986,2]
[323699971,1714167075709,-506.65,0.00016986,2]
[323699972,1714167075719,-854.81,0.00016986,2]
[323699973,1714167075730,-844.75,0.00016986,2]
[323699974,1714167075741,-728.65,0.00016986,2]
[323699975,1714167075752,-2110.77,0.00016986,2]
[323699976,1714167075761,-940.7,0.00016986,2]
[323699977,1714167075771,-3618.21,0.00016986,2]
[323699978,1714167075780,-432.42,0.00016986,2]
[323699979,1714167075789,-502.99544116,0.00016986,2]
[323699980,1714167075798,-1085.71,0.00016986,2]
[323699981,1714167075807,-574.66,0.00016986,2]
[323699982,1714167075817,-2709.84,0.00016986,2]
[323699983,1714167075826,-3874.03,0.00016986,2]
[323699984,1714167075835,-3510.07,0.00016986,2]
[323699985,1714167075844,-780.74,0.00016986,2]
[323699986,1714167075854,-579.45,0.00016986,2]
[323699987,1714167075863,-800.0,0.00017,3]
[323699988,1714167075872,-150.0,0.00017,2]
[323699989,1714167075882,-154.67450012,0.00017031,2]
[323699990,1714167075891,-155.59674192,0.00017061,2]
[323699991,1714167075900,-154.76534602,0.00017101,2]
[323699992,1714167075910,-159.85662846,0.00017104,2]
[323699993,1714167075921,-536.60501813,0.00017106,2]
[323699994,1714167075931,-515.0,0.00017123,2]
[323699995,1714167075941,-536.60501813,0.00017143,2]
[323699996,1714167075952,-562.97266904,0.00017191,2]
[323699997,1714167075961,-311.56,0.00017237,2]
[323699998,1714167075969,-846.24659988,0.0001726,2]
[323699999,1714167075978,-1347.96,0.0001726,2]
[323700000,1714167075987,-562.1692922,0.0001726,2]
[323700001,1714167075997,-1773.6387574,0.0001726,2]
[323700002,1714167076007,-1226.91,0.0001726,2]
[323700003,1714167076017,-2547.31841924,0.0001726,2]
[323700004,1714167076026,-2525.86,0.0001726,2]
[323700005,1714167076035,-1601.47,0.0001726,2]
[323700006,1714167076045,-1046.86,0.0001726,2]
[323700007,1714167076056,-2440.07,0.0001726,2]
[323700008,1714167076066,-507.46,0.0001726,2]
[323700009,1714167076075,-910.05,0.0001726,2]
[323700010,1714167076085,-1026.24999999,0.0001726,2]
[323700011,1714167076095,-936.4,0.0001726,2]
[323700012,1714167076105,-3948.47,0.0001726,2]
[323700013,1714167076114,-3479.09531832,0.0001726,2]
[323700014,1714167076124,-506.79,0.0001726,2]
[323700015,1714167076133,-854.92,0.0001726,2]
[323700016,1714167076144,-844.96,0.0001726,2]
[323700017,1714167076154,-728.85082041,0.0001726,2]
[323700018,1714167076163,-2110.94536379,0.0001726,2]
[323700019,1714167076172,-940.88,0.0001726,2]
[323700020,1714167076182,-3618.21707825,0.0001726,2]
[323700021,1714167076191,-1085.91,0.0001726,2]
[323700022,1714167076201,-2709.88533207,0.0001726,2]
[323700023,1714167076210,-3874.08,0.0001726,2]
[323700024,1714167076220,-3510.11467114,0.0001726,2]
[323700025,1714167076230,-780.7939728,0.0001726,2]
[323700026,1714167076240,-579.59,0.0001726,2]
[323700027,1714167076250,-154.76534602,0.00017324,2]
[323700028,1714167076260,-224.60048978,0.00017336,2]
[323700029,1714167076269,-158.37439134,0.0001739,2]
[323700030,1714167076280,-167.0,0.00017399,2]
[323700031,1714167076289,-562.97266904,0.00017402,2]
[323700032,1714167076298,-224.60048978,0.00017412,2]
[323700033,1714167076308,-224.60048978,0.0001744,2]
[323700034,1714167076318,-150.0,0.000175,2]
[323700035,1714167076327,-150.0,0.000175,2]
[323700036,1714167076337,-536.60501813,0.0001751,2]
[323700037,1714167076347,-400.0,0.00017533,2]
[323700038,1714167076358,-562.97266904,0.00017577,2]
[323700039,1714167076367,-562.97266904,0.0001762,2]
[323700040,1714167076377,-224.60048978,0.00017663,2]
[323700041,1714167076386,-784.99535603,0.00017685,2]
[323700042,1714167076396,-154.76534602,0.00017716,2]
[323700043,1714167076405,-152.83625945,0.0001774,2]
[323700044,1714167076414,-166.63656949,0.00017741,2]
[323700045,1714167076424,-150.74237741,0.00017767,2]
[323700046,1714167076433,-562.97266904,0.00017771,2]
[323700047,1714167076442,-562.97266904,0.00017798,2]
[323700048,1714167076451,-518.0,0.00017808,2]
[323700049,1714167076461,-536.60501813,0.00017826,2]
[323700050,1714167076471,-2338.87,0.00017853,10]
[323700051,1714167076480,-154.76534602,0.0001786,2]
[323700052,1714167076490,-536.60501813,0.00017867,2]
[323700053,1714167076503,-562.97266904,0.00017876,2]
[323700054,1714167076512,-662.82,0.00017879,2]
[323700055,1714167076522,-662.82,0.00017879,2]
[323700056,1714167076531,-662.82,0.00017879,2]
[323700057,1714167076541,-662.82,0.00017879,2]
[323700058,1714167076550,-662.82,0.00017879,2]
[323700059,1714167076560,-662.82,0.00017879,2]
[323700060,1714167076570,-662.82,0.00017879,2]
[323700061,1714167076580,-662.82,0.00017879,2]
[323700062,1714167076589,-662.82,0.00017879,2]
[323700063,1714167076600,-662.82,0.00017879,2]
[323700064,1714167076611,-662.82,0.00017879,2]
[323700065,1714167076621,-662.82,0.00017879,2]
[323700066,1714167076630,-662.82,0.00017879,2]
[323700067,1714167076640,-662.82,0.00017879,2]
[323700068,1714167076651,-662.82,0.00017879,2]
[323700069,1714167076661,-662.82,0.00017879,2]
[323700070,1714167076673,-662.9,0.00017879,2]
[323700071,1714167076685,-41256.3358133,0.0001788,2]
[323700072,1714167076694,-41256.33581329,0.0001788,2]
[323700073,1714167076704,-41256.33581329,0.0001788,2]
[323700074,1714167076714,-41256.33581329,0.0001788,2]
[323700075,1714167076725,-152.47114042,0.00017893,2]
[323700076,1714167076735,-536.60501813,0.00017919,2]
[323700077,1714167076745,-167.0,0.00017921,2]
[323700078,1714167076755,-167.85142384,0.00017962,2]
[323700079,1714167076765,-150.74237741,0.00017971,2]
[323700080,1714167076774,-157.25237568,0.00017974,2]
[323700081,1714167076784,-153.67518869,0.00017986,2]
[323700082,1714167076793,-3071.20810051,0.00018,2]
[323700083,1714167076803,-1000.0,0.00018,2]
[323700084,1714167076813,-150.0,0.00018,2]
[323700085,1714167076823,-150.0,0.00018,2]
[323700086,1714167076832,-153.85256324,0.00018096,2]
[323700087,1714167076841,-153.85256324,0.00018121,2]
[323700088,1714167076850,-158.37439134,0.00018135,2]
[323700089,1714167076860,-562.97266904,0.00018138,2]
[323700090,1714167076870,-153.85256324,0.00018148,2]
[323700091,1714167076880,-163.06543193,0.00018173,2]
[323700092,1714167076890,-155.59674192,0.00018261,2]
[323700093,1714167076900,-562.97266904,0.00018279,2]
[323700094,1714167076909,-153.85256324,0.00018319,2]